[Event "Schack-SM 2023: Mastarklassen"]
[Site "Helsingborg Arena, Mellersta Stenbocksgatan 14, Helsingborg, Sweden"]
[Date "2023.07.08"]
[Round "8.8"]
[White "Persson, Lars 1971"]
[Black "Soppela, Toni"]
[Result "1-0"]
[TimeControl "90 minutes for 40 moves + 30 minutes for the rest of games + 30 seconds per move from move one."]
[WhiteElo "1941"]
[BlackElo "2032"]

1. d4 {[%clk 01:21:52]} {[%emt 00:09:07]} Nf6 {[%clk 01:30:12]} {[%emt
00:00:47]} 2. Nf3 {[%clk 01:20:00]} {[%emt 00:02:23]} c5 {[%clk 01:29:53]}
{[%emt 00:00:49]} 3. c3 {[%clk 01:20:01]} {[%emt 00:00:27]} d5 {[%clk
01:29:44]} {[%emt 00:00:41]} 4. g3 {[%clk 01:20:14]} {[%emt 00:00:17]} Bf5
{[%clk 01:26:28]} {[%emt 00:03:46]} 5. Bg2 {[%clk 01:17:09]} {[%emt 00:03:35]}
e6 {[%clk 01:25:18]} {[%emt 00:01:40]} 6. O-O {[%clk 01:07:29]} {[%emt
00:10:10]} Bd6 {[%clk 01:17:01]} {[%emt 00:08:46]} 7. Nh4 {[%clk 01:04:24]}
{[%emt 00:03:36]} Bg4 {[%clk 01:12:59]} {[%emt 00:04:30]} 8. Nd2 {[%clk
00:58:20]} {[%emt 00:06:36]} cxd4 {[%clk 01:10:54]} {[%emt 00:02:35]} 9. cxd4
{[%clk 00:58:13]} {[%emt 00:00:37]} Nc6 {[%clk 01:09:05]} {[%emt 00:02:18]} 10.
Nhf3 {[%clk 00:57:28]} {[%emt 00:01:16]} O-O {[%clk 01:07:54]} {[%emt
00:01:40]} 11. Nb3 {[%clk 00:48:06]} {[%emt 00:09:53]} Qb8 {[%clk 00:47:16]}
{[%emt 00:21:07]} 12. Be3 {[%clk 00:43:17]} {[%emt 00:05:20]} a5 {[%clk
00:45:49]} {[%emt 00:01:57]} 13. Rc1 {[%clk 00:43:08]} {[%emt 00:00:39]} a4
{[%clk 00:43:48]} {[%emt 00:02:32]} 14. Nc5 {[%clk 00:42:37]} {[%emt 00:01:00]}
a3 {[%clk 00:43:14]} {[%emt 00:01:04]} 15. bxa3 {[%clk 00:32:39]} {[%emt
00:10:28]} h6 {[%clk 00:40:58]} {[%emt 00:02:45]} 16. a4 {[%clk 00:15:24]}
{[%emt 00:17:46]} Rc8 {[%clk 00:35:21]} {[%emt 00:06:05]} 17. Qb3 {[%clk
00:12:55]} {[%emt 00:03:01]} Na5 {[%clk 00:32:02]} {[%emt 00:03:49]} 18. Qb5
{[%clk 00:12:07]} {[%emt 00:01:18]} b6 {[%clk 00:30:58]} {[%emt 00:01:33]} 19.
Nd7 {[%clk 00:10:43]} {[%emt 00:01:55]} Nxd7 {[%clk 00:30:43]} {[%emt
00:00:46]} 20. Qxd7 {[%clk 00:11:11]} Nc4 {[%clk 00:30:47]} {[%emt 00:00:25]}
21. Rb1 {[%clk 00:07:30]} {[%emt 00:04:13]} Ra5 {[%clk 00:25:57]} {[%emt
00:05:19]} 22. Nd2 {[%clk 00:03:00]} {[%emt 00:05:01]} Rc7 {[%clk 00:23:09]}
{[%emt 00:03:17]} 23. Nxc4 {[%clk 00:03:17]} {[%emt 00:00:13]} Rxd7 {[%clk
00:23:25]} {[%emt 00:00:14]} 24. Nxa5 {[%clk 00:03:42]} {[%emt 00:00:06]} Qa8
{[%clk 00:22:55]} {[%emt 00:00:59]} 25. Nb3 {[%clk 00:03:08]} {[%emt 00:01:04]}
Bxe2 {[%clk 00:21:28]} {[%emt 00:01:56]} 26. Rfe1 {[%clk 00:03:24]} {[%emt
00:00:15]} Bc4 {[%clk 00:21:27]} {[%emt 00:00:30]} 27. Nd2 {[%clk 00:03:46]}
{[%emt 00:00:10]} Bd3 {[%clk 00:16:05]} {[%emt 00:05:51]} 28. Rb3 {[%clk
00:02:53]} {[%emt 00:01:23]} Qa6 {[%clk 00:13:06]} {[%emt 00:03:28]} 29. Nf3
{[%clk 00:02:09]} {[%emt 00:01:15]} Bc4 {[%clk 00:11:21]} {[%emt 00:02:15]} 30.
Rb2 {[%clk 00:01:49]} {[%emt 00:00:50]} Ba3 {[%clk 00:10:38]} {[%emt 00:01:13]}
31. Rbb1 {[%clk 00:02:12]} {[%emt 00:00:08]} Rc7 {[%clk 00:06:04]} {[%emt
00:05:03]} 32. Bf4 {[%clk 00:01:52]} {[%emt 00:00:50]} Rc8 {[%clk 00:04:35]}
{[%emt 00:01:59]} 33. Nd2 {[%clk 00:01:19]} {[%emt 00:01:02]} Qa5 {[%clk
00:03:41]} {[%emt 00:01:25]} 34. Nb3 {[%clk 00:00:54]} {[%emt 00:00:56]} Qxa4
{[%clk 00:03:42]} {[%emt 00:00:29]} 35. Bf3 {[%clk 00:00:58]} {[%emt 00:00:25]}
Bb4 {[%clk 00:03:38]} {[%emt 00:00:33]} 36. Rec1 {[%clk 00:01:06]} {[%emt
00:00:22]} Qxa2 {[%clk 00:03:33]} {[%emt 00:00:36]} 37. Bd1 {[%clk 00:00:41]}
{[%emt 00:00:55]} Qa6 {[%clk 00:02:01]} {[%emt 00:02:02]} 38. Ra1 {[%clk
00:00:47]} {[%emt 00:00:25]} Qb7 {[%clk 00:02:15]} {[%emt 00:00:14]} 39. Ra4
{[%clk 00:00:54]} {[%emt 00:00:24]} Qe7 {[%clk 00:01:54]} {[%emt 00:00:52]} 40.
Nd2 {[%clk 00:00:39]} {[%emt 00:00:45]} b5 {[%clk 00:01:49]} {[%emt 00:00:35]}
41. Ra6 {[%clk 00:22:40]} {[%emt 00:08:28]} Ba3 {[%clk 00:27:51]} {[%emt
00:04:27]} 42. Ra1 {[%clk 00:17:14]} {[%emt 00:05:57]} b4 {[%clk 00:25:52]}
{[%emt 00:02:29]} 43. Rb6 {[%clk 00:10:16]} {[%emt 00:07:27]} Bb2 {[%clk
00:09:30]} {[%emt 00:16:54]} 44. Rb1 {[%clk 00:04:09]} {[%emt 00:06:37]} Bc3
{[%clk 00:07:13]} {[%emt 00:02:46]} 45. Nxc4 {[%clk 00:02:14]} {[%emt
00:02:25]} dxc4 {[%clk 00:06:17]} {[%emt 00:01:26]} 46. Bf3 {[%clk 00:02:26]}
{[%emt 00:00:18]} Qa7 {[%clk 00:05:48]} {[%emt 00:00:58]} 47. Rb7 {[%clk
00:01:08]} {[%emt 00:01:49]} Qa2 {[%clk 00:05:27]} {[%emt 00:00:50]} 48. Rd1
{[%clk 00:01:35]} {[%emt 00:00:04]} Qb2 {[%clk 00:03:15]} {[%emt 00:02:43]} 49.
d5 {[%clk 00:01:34]} {[%emt 00:00:31]} e5 {[%clk 00:02:41]} {[%emt 00:01:04]}
50. Be3 {[%clk 00:01:29]} {[%emt 00:00:34]} Bd4 {[%clk 00:02:39]} {[%emt
00:00:32]} 51. d6 {[%clk 00:01:45]} {[%emt 00:00:14]} Rd8 {[%clk 00:02:09]}
{[%emt 00:01:00]} 52. d7 {[%clk 00:02:03]} {[%emt 00:00:12]} c3 {[%clk
00:02:06]} {[%emt 00:00:34]} 53. Bxd4 {[%clk 00:01:40]} {[%emt 00:00:53]} exd4
{[%clk 00:02:16]} {[%emt 00:00:20]} 54. Re1 {[%clk 00:02:05]} {[%emt 00:00:05]}
Kh7 {[%clk 00:02:04]} {[%emt 00:00:41]} 55. Re8 {[%clk 00:02:05]} {[%emt
00:00:30]} Rxd7 {[%clk 00:01:11]} {[%emt 00:01:23]} 56. Rxd7 {[%clk 00:02:33]}
{[%emt 00:00:02]} Qb1+ {[%clk 00:01:03]} {[%emt 00:00:38]} 57. Kg2 {[%clk
00:03:00]} {[%emt 00:00:03]} f5 {[%clk 00:01:02]} {[%emt 00:00:31]} 58. Bh5
{[%clk 00:03:06]} {[%emt 00:00:24]} Qa2 {[%clk 00:00:43]} {[%emt 00:00:49]} 59.
Rdd8 {[%clk 00:02:57]} {[%emt 00:00:39]} 1-0

[Event "Schack-SM 2023: Junior-SM"]
[Site "Helsingborg Arena, Mellersta Stenbocksgatan 14, Helsingborg, Sweden"]
[Date "2023.07.08"]
[Round "8.2"]
[White "Ostlund, Joar"]
[Black "Seo, Jung Hyun"]
[Result "1-0"]
[TimeControl "90 minutes for 40 moves + 30 minutes for the rest of the game + 30 seconds per move from move one."]
[WhiteTitle "CM"]
[WhiteElo "2265"]
[BlackElo "2124"]

1. d4 {[%clk 01:30:55]} {[%emt 00:00:04]} Nf6 {[%clk 01:30:56]} {[%emt
00:00:04]} 2. c4 {[%clk 01:31:19]} {[%emt 00:00:06]} e6 {[%clk 01:31:24]}
{[%emt 00:00:03]} 3. g3 {[%clk 01:30:53]} {[%emt 00:00:56]} c5 {[%clk
01:31:51]} {[%emt 00:00:02]} 4. d5 {[%clk 01:30:59]} {[%emt 00:00:24]} d6
{[%clk 01:32:14]} {[%emt 00:00:08]} 5. Bg2 {[%clk 01:31:09]} {[%emt 00:00:19]}
exd5 {[%clk 01:32:34]} {[%emt 00:00:09]} 6. cxd5 {[%clk 01:31:23]} {[%emt
00:00:16]} g6 {[%clk 01:33:02]} {[%emt 00:00:02]} 7. Nc3 {[%clk 01:31:15]}
{[%emt 00:00:38]} Bg7 {[%clk 01:33:27]} {[%emt 00:00:05]} 8. Nf3 {[%clk
01:31:17]} {[%emt 00:00:27]} O-O {[%clk 01:33:36]} {[%emt 00:00:22]} 9. O-O
{[%clk 01:31:29]} {[%emt 00:00:17]} Re8 {[%clk 01:34:04]} {[%emt 00:00:02]} 10.
Nd2 {[%clk 01:30:39]} {[%emt 00:01:21]} Bg4 {[%clk 01:32:29]} {[%emt 00:02:04]}
11. h3 {[%clk 01:27:10]} {[%emt 00:03:59]} Bd7 {[%clk 01:32:53]} {[%emt
00:00:06]} 12. Nc4 {[%clk 01:18:21]} {[%emt 00:09:19]} Bf8 {[%clk 01:27:15]}
{[%emt 00:06:09]} 13. a4 {[%clk 01:15:06]} {[%emt 00:03:45]} Na6 {[%clk
01:22:48]} {[%emt 00:04:57]} 14. Bf4 {[%clk 01:13:50]} {[%emt 00:01:46]} Qb8
{[%clk 01:22:23]} {[%emt 00:00:55]} 15. Re1 {[%clk 01:00:23]} {[%emt 00:13:56]}
Nh5 {[%clk 01:19:50]} {[%emt 00:03:03]} 16. Bd2 {[%clk 00:58:52]} {[%emt
00:02:01]} b5 {[%clk 01:14:46]} {[%emt 00:05:34]} 17. axb5 {[%clk 00:56:29]}
{[%emt 00:02:54]} Bxb5 {[%clk 01:14:41]} {[%emt 00:00:34]} 18. Na5 {[%clk
00:54:37]} {[%emt 00:02:22]} Bd7 {[%clk 01:03:02]} {[%emt 00:12:09]} 19. g4
{[%clk 00:42:47]} {[%emt 00:12:20]} Ng7 {[%clk 01:01:46]} {[%emt 00:01:46]} 20.
Nc6 {[%clk 00:40:29]} {[%emt 00:02:48]} Bxc6 {[%clk 00:53:43]} {[%emt
00:08:34]} 21. dxc6 {[%clk 00:40:46]} {[%emt 00:00:13]} Nc7 {[%clk 00:54:05]}
{[%emt 00:00:07]} 22. Ne4 {[%clk 00:23:28]} {[%emt 00:17:49]} Rxe4 {[%clk
00:40:14]} {[%emt 00:14:22]} 23. Bxe4 {[%clk 00:23:52]} {[%emt 00:00:06]} f5
{[%clk 00:39:59]} {[%emt 00:00:45]} 24. gxf5 {[%clk 00:20:51]} {[%emt
00:03:30]} gxf5 {[%clk 00:40:28]} {[%emt 00:00:01]} 25. Bg2 {[%clk 00:20:06]}
{[%emt 00:01:15]} Qxb2 {[%clk 00:40:50]} {[%emt 00:00:08]} 26. Rb1 {[%clk
00:19:08]} {[%emt 00:01:28]} Qe5 {[%clk 00:40:21]} {[%emt 00:00:58]} 27. Ba5
{[%clk 00:16:06]} {[%emt 00:03:32]} Nge6 {[%clk 00:40:11]} {[%emt 00:00:41]} 28.
Qb3 {[%clk 00:13:03]} {[%emt 00:03:33]} Kh8 {[%clk 00:38:15]} {[%emt 00:02:26]}
29. Bc3 {[%clk 00:12:52]} {[%emt 00:00:41]} Nd4 {[%clk 00:38:38]} {[%emt
00:00:07]} 30. Qf7 {[%clk 00:10:44]} {[%emt 00:02:38]} Qg7 {[%clk 00:36:14]}
{[%emt 00:02:53]} 31. Bxd4 {[%clk 00:09:58]} {[%emt 00:01:16]} cxd4 {[%clk
00:36:43]} {[%emt 00:00:01]} 32. Qxg7+ {[%clk 00:09:57]} {[%emt 00:00:30]} Kxg7
{[%clk 00:36:33]} {[%emt 00:00:40]} 33. Rb7 {[%clk 00:09:20]} {[%emt 00:01:08]}
Rc8 {[%clk 00:36:59]} {[%emt 00:00:04]} 34. Ra1 {[%clk 00:09:08]} {[%emt
00:00:42]} d5 {[%clk 00:37:05]} {[%emt 00:00:24]} 35. Raxa7 {[%clk 00:08:45]}
{[%emt 00:00:52]} Bd6 {[%clk 00:37:32]} {[%emt 00:00:04]} 36. Bxd5 {[%clk
00:08:21]} {[%emt 00:00:54]} Kf6 {[%clk 00:37:55]} {[%emt 00:00:07]} 37. Bc4
{[%clk 00:06:33]} {[%emt 00:02:18]} Kg5 {[%clk 00:37:34]} {[%emt 00:00:51]} 38.
Ra5 {[%clk 00:05:31]} {[%emt 00:01:32]} Rf8 {[%clk 00:36:14]} {[%emt 00:01:50]}
39. Bd3 {[%clk 00:04:30]} {[%emt 00:01:32]} h5 {[%clk 00:36:28]} {[%emt
00:00:16]} 40. Bc2 {[%clk 00:03:11]} {[%emt 00:01:49]} Kf4 {[%clk 00:36:10]}
{[%emt 00:00:48]} 41. Rb3 {[%clk 00:03:03]} {[%emt 00:00:37]} Kg5 {[%clk
00:34:53]} {[%emt 00:01:48]} 42. Rf3 {[%clk 00:02:55]} {[%emt 00:00:38]} Kh6
{[%clk 00:34:23]} {[%emt 00:01:00]} 43. Rfxf5 {[%clk 00:02:45]} {[%emt
00:00:39]} d3 {[%clk 00:33:40]} {[%emt 00:01:13]} 44. Bxd3 {[%clk 00:02:26]}
{[%emt 00:00:49]} Rd8 {[%clk 00:34:03]} {[%emt 00:00:07]} 45. Rxh5+ {[%clk
00:02:30]} {[%emt 00:00:26]} Kg7 {[%clk 00:34:33]} 46. Rag5+ {[%clk 00:02:46]}
{[%emt 00:00:15]} Kf7 {[%clk 00:34:39]} {[%emt 00:00:24]} 47. Rh7+ {[%clk
00:02:34]} {[%emt 00:00:41]} Kf6 {[%clk 00:35:04]} {[%emt 00:00:05]} 48. Rg6+
{[%clk 00:02:45]} {[%emt 00:00:19]} Ke5 {[%clk 00:35:30]} {[%emt 00:00:03]} 49.
Rd7 {[%clk 00:02:02]} {[%emt 00:01:13]} Rb8 {[%clk 00:35:43]} {[%emt 00:00:17]}
50. Rdxd6 {[%clk 00:02:11]} {[%emt 00:00:21]} Ne8 {[%clk 00:35:32]} {[%emt
00:00:41]} 51. Rge6+ {[%clk 00:02:07]} {[%emt 00:00:33]} Kf4 {[%clk 00:35:56]}
{[%emt 00:00:06]} 52. Rd4+ {[%clk 00:02:21]} {[%emt 00:00:16]} Kg5 {[%clk
00:36:22]} {[%emt 00:00:05]} 53. Rg4+ {[%clk 00:02:25]} {[%emt 00:00:25]} Kh5
{[%clk 00:36:51]} 54. Re5+ {[%clk 00:02:46]} {[%emt 00:00:10]} Kh6 {[%clk
00:37:20]} {[%emt 00:00:01]} 55. Rg6+ {[%clk 00:03:09]} {[%emt 00:00:07]} Kh7
{[%emt 00:00:05]} 56. Rh5# {[%clk 00:03:35]} {[%emt 00:00:04]} 1-0

[Event "Schack-SM 2023: Mastarklassen"]
[Site "Helsingborg Arena, Mellersta Stenbocksgatan 14, Helsingborg, Sweden"]
[Date "2023.07.08"]
[Round "8.9"]
[White "Muntean, Victor"]
[Black "Carlstrom, Niklas"]
[Result "1-0"]
[TimeControl "90 minutes for 40 moves + 30 minutes for the rest of games + 30 seconds per move from move one."]
[WhiteElo "2097"]
[BlackElo "2125"]

1. e4 {[%clk 01:30:58]} e6 {[%clk 01:30:45]} {[%emt 00:00:16]} 2. d4 {[%clk
01:31:23]} {[%emt 00:00:05]} d5 {[%clk 01:31:08]} {[%emt 00:00:05]} 3. e5
{[%clk 01:31:49]} {[%emt 00:00:05]} c5 {[%clk 01:31:28]} {[%emt 00:00:10]} 4.
c3 {[%clk 01:32:16]} {[%emt 00:00:05]} Nc6 {[%clk 01:31:47]} {[%emt 00:00:10]}
5. Nf3 {[%clk 01:32:41]} {[%emt 00:00:05]} Nge7 {[%clk 01:32:06]} {[%emt
00:00:10]} 6. Bd3 {[%clk 01:30:48]} {[%emt 00:02:24]} cxd4 {[%clk 01:32:13]}
{[%emt 00:00:23]} 7. cxd4 {[%clk 01:30:22]} {[%emt 00:00:56]} Nf5 {[%clk
01:32:23]} {[%emt 00:00:19]} 8. Bxf5 {[%clk 01:26:14]} {[%emt 00:04:39]} exf5
{[%clk 01:32:42]} {[%emt 00:00:11]} 9. O-O {[%clk 01:25:27]} {[%emt 00:01:17]}
Be6 {[%clk 01:31:55]} {[%emt 00:01:17]} 10. b3 {[%clk 01:21:49]} {[%emt
00:04:09]} Be7 {[%clk 01:26:45]} {[%emt 00:05:38]} 11. Ba3 {[%clk 01:17:48]}
{[%emt 00:04:32]} g5 {[%clk 01:20:06]} {[%emt 00:07:08]} 12. Bxe7 {[%clk
01:09:59]} {[%emt 00:08:20]} Qxe7 {[%clk 01:20:17]} {[%emt 00:00:19]} 13. Nc3
{[%clk 01:09:01]} {[%emt 00:01:29]} g4 {[%clk 01:08:42]} {[%emt 00:12:03]} 14.
Ne1 {[%clk 01:07:52]} {[%emt 00:01:39]} Qb4 {[%clk 01:06:05]} {[%emt 00:03:07]}
15. Ne2 {[%clk 01:05:51]} {[%emt 00:02:32]} Rc8 {[%clk 00:59:24]} {[%emt
00:07:11]} 16. Nd3 {[%clk 01:03:11]} {[%emt 00:03:10]} Qe7 {[%clk 00:59:32]}
{[%emt 00:00:21]} 17. Ndf4 {[%clk 01:02:14]} {[%emt 00:01:28]} Qg5 {[%clk
00:53:41]} {[%emt 00:06:20]} 18. Rc1 {[%clk 00:57:45]} {[%emt 00:05:01]} O-O
{[%clk 00:48:34]} {[%emt 00:05:35]} 19. Qd2 {[%clk 00:53:20]} {[%emt 00:04:56]}
b6 {[%clk 00:34:22]} {[%emt 00:14:41]} 20. Qe3 {[%clk 00:49:40]} {[%emt
00:04:11]} h6 {[%clk 00:24:58]} {[%emt 00:09:53]} 21. Ng3 {[%clk 00:48:20]}
{[%emt 00:01:51]} Ne7 {[%clk 00:22:18]} {[%emt 00:03:10]} 22. Ngh5 {[%clk
00:46:05]} {[%emt 00:02:45]} Rfd8 {[%clk 00:21:46]} {[%emt 00:01:00]} 23. Nf6+
{[%clk 00:40:23]} {[%emt 00:06:14]} Kh8 {[%clk 00:21:56]} {[%emt 00:00:19]} 24.
Rxc8 {[%clk 00:39:36]} {[%emt 00:01:18]} Rxc8 {[%clk 00:21:55]} {[%emt
00:00:30]} 25. Rc1 {[%clk 00:39:57]} {[%emt 00:00:10]} Rxc1+ {[%clk 00:19:07]}
{[%emt 00:03:18]} 26. Qxc1 {[%clk 00:40:20]} {[%emt 00:00:05]} Ng8 {[%clk
00:19:03]} {[%emt 00:00:35]} 27. Nxg8 {[%clk 00:33:18]} {[%emt 00:07:33]} Kxg8
{[%clk 00:18:49]} {[%emt 00:00:43]} 28. g3 {[%clk 00:33:31]} {[%emt 00:00:18]}
Qe7 {[%clk 00:17:04]} {[%emt 00:02:15]} 29. a3 {[%clk 00:27:56]} {[%emt
00:06:06]} Kh7 {[%clk 00:12:28]} {[%emt 00:05:05]} 30. Nh5 {[%clk 00:26:54]}
{[%emt 00:01:33]} Qb7 {[%clk 00:10:05]} {[%emt 00:02:52]} 31. Nf6+ {[%clk
00:25:51]} {[%emt 00:01:32]} Kg7 {[%clk 00:10:26]} {[%emt 00:00:09]} 32. Qc7
{[%clk 00:21:37]} {[%emt 00:04:45]} Qxc7 {[%clk 00:09:02]} {[%emt 00:01:54]} 33.
Ne8+ {[%clk 00:22:01]} {[%emt 00:00:05]} Kf8 {[%clk 00:09:22]} {[%emt
00:00:10]} 34. Nxc7 {[%clk 00:22:26]} {[%emt 00:00:06]} Ke7 {[%clk 00:06:47]}
{[%emt 00:03:04]} 35. Kf1 {[%clk 00:21:43]} {[%emt 00:01:15]} Kd7 {[%clk
00:06:15]} {[%emt 00:01:01]} 36. Nb5 {[%clk 00:22:04]} {[%emt 00:00:09]} a6
{[%clk 00:06:01]} {[%emt 00:00:44]} 37. Nc3 {[%clk 00:22:29]} {[%emt 00:00:06]}
Kc6 {[%clk 00:04:37]} {[%emt 00:01:53]} 38. Ke2 {[%clk 00:21:59]} {[%emt
00:01:00]} a5 {[%clk 00:02:02]} {[%emt 00:03:05]} 39. Ke3 {[%clk 00:21:20]}
{[%emt 00:01:09]} Bc8 {[%clk 00:01:37]} {[%emt 00:00:55]} 40. Kf4 {[%clk
00:21:00]} {[%emt 00:00:49]} Bd7 {[%clk 00:01:40]} {[%emt 00:00:28]} 41. a4
{[%clk 00:19:51]} {[%emt 00:01:39]} Kb7 {[%clk 00:23:46]} {[%emt 00:08:24]} 42.
Nb5 {[%clk 00:43:55]} {[%emt 00:06:26]} Kc6 {[%clk 00:18:45]} {[%emt 00:05:30]}
43. Nd6 {[%clk 00:44:05]} {[%emt 00:00:20]} Kc7 {[%clk 00:16:01]} {[%emt
00:03:15]} 44. Nxf7 {[%clk 00:42:28]} {[%emt 00:02:07]} b5 {[%clk 00:16:17]}
{[%emt 00:00:13]} 45. axb5 {[%clk 00:42:20]} {[%emt 00:00:39]} Bxb5 {[%clk
00:16:38]} {[%emt 00:00:08]} 46. e6 {[%clk 00:42:35]} {[%emt 00:00:15]} Bc4
{[%clk 00:12:44]} {[%emt 00:04:25]} 47. bxc4 {[%clk 00:41:32]} {[%emt
00:01:34]} a4 {[%clk 00:13:07]} {[%emt 00:00:06]} 48. cxd5 {[%clk 00:41:52]}
{[%emt 00:00:10]} a3 {[%clk 00:13:27]} {[%emt 00:00:08]} 49. d6+ {[%clk
00:42:18]} {[%emt 00:00:05]} Kb7 {[%clk 00:13:30]} {[%emt 00:00:27]} 50. e7
{[%clk 00:42:12]} {[%emt 00:00:36]} a2 {[%clk 00:13:51]} {[%emt 00:00:09]} 51.
e8=Q {[%clk 00:42:36]} {[%emt 00:00:06]} a1=Q {[%clk 00:14:14]} {[%emt
00:00:08]} 52. Nd8+ {[%clk 00:42:50]} {[%emt 00:00:16]} 1-0

[ePGN "0.1;DGT LiveChess/2.2.5"]

[Event "Schack-SM 2023: Sverigemastarklassen"]
[Site "Helsingborg Arena, Mellersta Stenbocksgatan 14, Helsingborg, Sweden"]
[Date "2023.07.08"]
[Round "8.1"]
[White "Pantzar, Milton"]
[Black "Seo, Jung Min"]
[Result "1/2-1/2"]
[TimeControl "90 minutes for 40 moves + 30 minutes for the rest of the game + 30 seconds per move from move one."]
[WhiteTitle "IM"]
[BlackTitle "IM"]
[WhiteFideId "1721003"]
[BlackFideId "1734687"]
[WhiteElo "2442"]
[BlackElo "2469"]

1. d4 {[%clk 01:30:53]} {[%emt 00:00:06]} d5 {[%clk 01:30:58]} {[%emt
00:00:03]} 2. Nf3 {[%clk 01:30:43]} {[%emt 00:00:40]} Nf6 {[%clk 01:31:25]}
{[%emt 00:00:03]} 3. c4 {[%clk 01:30:59]} {[%emt 00:00:13]} dxc4 {[%clk
01:30:58]} {[%emt 00:00:59]} 4. e3 {[%clk 01:30:43]} {[%emt 00:00:45]} e6
{[%clk 01:31:14]} {[%emt 00:00:15]} 5. Bxc4 {[%clk 01:30:38]} {[%emt 00:00:35]}
c5 {[%clk 01:31:42]} {[%emt 00:00:02]} 6. O-O {[%clk 01:30:41]} {[%emt
00:00:27]} a6 {[%clk 01:32:02]} {[%emt 00:00:11]} 7. dxc5 {[%clk 01:29:38]}
{[%emt 00:01:33]} Qxd1 {[%clk 01:32:06]} {[%emt 00:00:26]} 8. Rxd1 {[%clk
01:30:06]} {[%emt 00:00:01]} Bxc5 {[%clk 01:32:27]} {[%emt 00:00:09]} 9. Be2
{[%clk 01:27:08]} {[%emt 00:03:27]} O-O {[%clk 01:26:56]} {[%emt 00:06:01]} 10.
Nbd2 {[%clk 01:26:07]} {[%emt 00:01:31]} Rd8 {[%clk 01:24:46]} {[%emt
00:02:41]} 11. Ne5 {[%clk 01:23:56]} {[%emt 00:02:41]} b5 {[%clk 01:21:36]}
{[%emt 00:03:40]} 12. Nb3 {[%clk 01:18:55]} {[%emt 00:05:31]} Rxd1+ {[%clk
01:21:59]} {[%emt 00:00:06]} 13. Bxd1 {[%clk 01:19:20]} {[%emt 00:00:05]} Bd6
{[%clk 01:21:37]} {[%emt 00:00:53]} 14. Nd3 {[%clk 01:19:22]} {[%emt 00:00:27]}
Bb7 {[%clk 01:21:26]} {[%emt 00:00:41]} 15. f3 {[%clk 01:16:48]} {[%emt
00:03:04]} Nbd7 {[%clk 01:17:17]} {[%emt 00:04:40]} 16. e4 {[%clk 01:13:52]}
{[%emt 00:03:26]} Ne5 {[%clk 01:15:02]} {[%emt 00:02:45]} 17. Nxe5 {[%clk
00:57:51]} {[%emt 00:16:31]} Bxe5 {[%clk 01:15:26]} {[%emt 00:00:06]} 18. Na5
{[%clk 00:58:08]} {[%emt 00:00:12]} Rd8 {[%clk 01:13:21]} {[%emt 00:02:35]} 19.
Be2 {[%clk 00:57:06]} {[%emt 00:01:32]} Ba8 {[%clk 01:13:28]} {[%emt 00:00:23]}
20. a4 {[%clk 00:55:34]} {[%emt 00:02:02]} Rb8 {[%clk 01:13:32]} {[%emt
00:00:26]} 21. axb5 {[%clk 00:54:34]} {[%emt 00:01:32]} axb5 {[%clk 01:13:55]}
{[%emt 00:00:06]} 22. Ra2 {[%clk 00:42:54]} {[%emt 00:12:09]} Bd4+ {[%clk
01:08:33]} {[%emt 00:05:52]} 23. Kf1 {[%clk 00:42:07]} {[%emt 00:01:17]} Be5
{[%clk 01:06:34]} {[%emt 00:02:30]} 24. Kg1 {[%clk 00:32:38]} {[%emt 00:09:59]}
Bd4+ {[%clk 01:03:51]} {[%emt 00:03:13]} 25. Kf1 {[%clk 00:32:54]} {[%emt
00:00:14]} Be5 {[%clk 01:04:16]} {[%emt 00:00:05]} 1/2-1/2